bitfinex-derivatives/quotes_BNBF0:USTF0_20250608
["timestamp","ask_amount","ask_price","bid_price","bid_amount"]
[1749358526125,1.11800159,650.01,649.42,0.388]
[1749358526429,0.652,650.02,649.42,0.388]
[1749358526625,1.11795463,650.01,649.42,0.388]
[1749358526925,0.652,650.02,649.42,0.388]
[1749358527125,1.11796927,650.01,649.42,0.388]
[1749358527429,0.652,650.02,649.42,0.388]
[1749358537133,0.26774483,650.03,649.42,0.388]
[1749358539931,0.597,650.02,649.42,0.388]
[1749358541236,0.597,650.02,649.41,0.30797185]
[1749358543239,1.11739397,650.01,649.41,0.30797185]
[1749358543537,0.597,650.02,649.41,0.30797185]
[1749358543732,1.11736942,650.01,649.41,0.30797185]
[1749358543937,0.597,650.02,649.41,0.30797185]
[1749358544235,1.11736941,650.01,649.41,0.30797185]
[1749358544738,0.597,650.02,649.41,0.30797185]
[1749358544937,0.597,650.02,649.42,0.388]
[1749358545438,1.11737622,650.01,649.42,0.388]
[1749358546737,0.597,650.02,649.42,0.388]
[1749358547941,1.11734251,650.01,649.42,0.388]
[1749358548840,1.1174115,650.0,649.42,0.388]
[1749358549040,0.597,650.02,649.42,0.388]
[1749358549341,1.1174117,650.01,649.42,0.388]
[1749358549541,1.1174117,650.0,649.42,0.388]
[1749358549740,1.1174117,649.99,649.42,0.388]
[1749358549940,0.597,650.02,649.42,0.388]
[1749358550235,1.11740129,650.01,649.42,0.388]
[1749358550441,0.597,650.02,649.42,0.388]
[1749358550739,1.11734167,650.01,649.42,0.388]
[1749358551041,0.597,650.02,649.42,0.388]
[1749358551243,1.11733761,650.01,649.42,0.388]
[1749358551540,0.597,650.02,649.42,0.388]
[1749358551738,1.11732187,650.01,649.42,0.388]
[1749358551942,0.597,650.02,649.42,0.388]
[1749358552142,1.11733474,650.01,649.42,0.388]
[1749358552343,0.597,650.02,649.42,0.388]
[1749358555937,0.26774483,650.03,649.42,0.388]
[1749358556139,1.11729295,650.02,649.42,0.388]
[1749358556439,0.26774483,650.03,649.42,0.388]
[1749358557042,1.11729481,650.02,649.42,0.388]
[1749358557240,0.26774483,650.03,649.42,0.388]
[1749358557241,1.11729481,650.01,649.42,0.388]
[1749358557443,0.26774483,650.03,649.42,0.388]
[1749358557644,1.11729678,650.02,649.42,0.388]
[1749358557840,1.11729678,650.01,649.42,0.388]
[1749358558043,0.26774483,650.03,649.42,0.388]
[1749358558242,1.11730104,650.02,649.42,0.388]
[1749358558441,0.26774483,650.03,649.42,0.388]
[1749358558645,1.11738187,650.02,649.42,0.388]
[1749358558945,0.547,650.02,649.42,0.388]
[1749358559544,1.11739355,650.01,649.42,0.388]
[1749358559742,0.547,650.02,649.42,0.388]
[1749358560846,0.547,650.02,649.41,0.30797185]
[1749358562041,1.11739737,650.01,649.41,0.30797185]
[1749358562241,0.547,650.02,649.41,0.30797185]
[1749358562443,1.11741547,650.01,649.41,0.30797185]
[1749358562642,0.547,650.02,649.41,0.30797185]
[1749358562842,1.11742504,650.01,649.41,0.30797185]
[1749358563046,0.547,650.02,649.41,0.30797185]
[1749358563347,0.547,650.02,649.42,0.388]
[1749358563544,1.11744074,650.01,649.42,0.388]
[1749358563743,1.11744074,650.0,649.42,0.388]
[1749358563947,0.547,650.02,649.42,0.388]
[1749358564244,1.11745669,650.01,649.42,0.388]
[1749358564448,1.11745669,650.0,649.42,0.388]
[1749358564645,0.547,650.02,649.42,0.388]
[1749358564846,1.11746562,650.01,649.42,0.388]
[1749358565044,1.11746562,650.0,649.42,0.388]
[1749358565249,0.547,650.02,649.42,0.388]
[1749358565548,1.11746562,650.01,649.42,0.388]
[1749358565746,1.11746562,650.0,649.42,0.388]
[1749358565950,0.547,650.02,649.42,0.388]
[1749358566245,1.11743828,650.01,649.42,0.388]
[1749358566444,1.11743828,650.0,649.42,0.388]
[1749358566648,0.547,650.02,649.42,0.388]
[1749358566849,1.11744742,650.01,649.42,0.388]
[1749358567050,0.547,650.02,649.42,0.388]
[1749358567349,1.11744508,650.01,649.42,0.388]
[1749358567550,1.11744508,650.0,649.42,0.388]
[1749358567751,0.547,650.02,649.42,0.388]
[1749358568050,1.11738547,650.01,649.42,0.388]
[1749358568251,1.11738547,650.0,649.42,0.388]
[1749358568450,0.547,650.02,649.42,0.388]
[1749358568652,1.11742361,650.01,649.42,0.388]
[1749358568851,1.11742361,650.0,649.42,0.388]
[1749358569150,0.547,650.02,649.42,0.388]
[1749358569347,1.11742348,650.01,649.42,0.388]
[1749358569547,1.11742348,650.0,649.42,0.388]
[1749358569751,0.547,650.02,649.42,0.388]
[1749358570047,1.1174671,650.01,649.42,0.388]
[1749358570249,1.1174671,650.0,649.42,0.388]
[1749358570447,0.547,650.02,649.42,0.388]
[1749358570752,1.11751543,650.01,649.42,0.388]
[1749358571051,1.11751543,650.0,649.42,0.388]
[1749358571251,0.547,650.02,649.42,0.388]
[1749358571549,1.1175138,650.01,649.42,0.388]
[1749358571849,1.1175138,650.0,649.42,0.388]
[1749358572050,0.547,650.02,649.42,0.388]
[1749358572051,1.1175138,649.99,649.42,0.388]
[1749358572346,0.547,650.02,649.42,0.388]
[1749358572549,1.11757846,650.01,649.42,0.388]
[1749358572749,1.11757846,650.0,649.42,0.388]
[1749358572947,1.11757846,649.99,649.42,0.388]
[1749358573147,0.547,650.02,649.42,0.388]
[1749358574050,1.11768649,650.01,649.42,0.388]
[1749358574248,0.547,650.02,649.42,0.388]
[1749358574550,1.11768655,650.01,649.42,0.388]
[1749358574749,0.547,650.02,649.42,0.388]
[1749358574948,1.11776456,650.01,649.42,0.388]
[1749358575152,0.547,650.02,649.42,0.388]
[1749358575352,1.11776456,650.01,649.42,0.388]
[1749358575553,0.547,650.02,649.42,0.388]
[1749358575748,1.11785234,650.01,649.42,0.388]
[1749358575948,0.547,650.02,649.42,0.388]
[1749358576151,1.11779713,650.01,649.42,0.388]
[1749358576346,0.547,650.02,649.42,0.388]
[1749358576551,1.11789623,650.01,649.42,0.388]
[1749358576751,0.547,650.02,649.42,0.388]
[1749358576953,1.11789613,650.01,649.42,0.388]
[1749358577155,0.547,650.02,649.42,0.388]
[1749358577354,1.11789618,650.01,649.42,0.388]
[1749358577553,0.547,650.02,649.42,0.388]
[1749358577850,1.11800627,650.01,649.42,0.388]
[1749358578049,0.547,650.02,649.42,0.388]
[1749358578249,1.11807997,650.01,649.42,0.388]
[1749358578456,1.11820764,650.0,649.42,0.388]
[1749358578652,0.547,650.02,649.42,0.388]
[1749358578854,1.11820764,650.01,649.42,0.388]
[1749358579155,0.547,650.02,649.42,0.388]
[1749358579455,1.11820764,650.01,649.42,0.388]
[1749358579654,0.547,650.02,649.42,0.388]
[1749358579956,1.11835678,650.01,649.42,0.388]
[1749358580256,0.547,650.02,649.41,0.30797185]
[1749358580458,1.11835813,650.01,649.41,0.30797185]
[1749358580652,0.547,650.02,649.41,0.30797185]
[1749358580653,1.11835813,650.0,649.41,0.30797185]
[1749358580861,0.547,650.02,649.41,0.30797185]
[1749358581055,1.11853894,650.01,649.41,0.30797185]
[1749358581251,1.11853894,650.0,649.41,0.30797185]
[1749358581556,1.11877368,649.99,649.41,0.30797185]
[1749358581755,0.547,650.02,649.41,0.30797185]
[1749358582056,1.1187737,650.01,649.41,0.30797185]
[1749358582359,1.1187737,650.0,649.41,0.30797185]
[1749358582554,1.1187737,649.99,649.41,0.30797185]
[1749358582753,1.1187737,649.98,649.41,0.30797185]
[1749358583058,0.547,650.02,649.42,0.388]
[1749358583357,1.11897682,650.01,649.42,0.388]
[1749358583556,1.11897682,650.0,649.42,0.388]
[1749358583754,1.11897682,649.99,649.42,0.388]
[1749358583954,0.26779737,649.86,649.42,0.388]
[1749358588762,0.547,650.02,649.42,0.388]
[1749358588961,0.26776234,649.94,649.42,0.388]
[1749358589162,0.26776234,649.94,649.42,0.6959671]
[1749358598066,0.633,649.93,649.42,0.6959671]
[1749358607978,0.633,649.93,649.42,0.3079671]
[1749358612079,0.633,649.93,649.43,0.388]
[1749358636197,0.633,649.93,649.42,0.3079671]
[1749358636996,0.26776234,649.94,649.42,0.3079671]
[1749358639796,0.26776234,649.94,649.43,0.388]
[1749358640499,0.599,649.93,649.43,0.388]
[1749358664417,0.26776234,649.94,649.43,0.388]
[1749358665725,0.26776234,649.94,649.42,0.3079671]
[1749358667822,0.646,649.93,649.42,0.3079671]
[1749358669623,0.646,649.93,649.43,0.388]
[1749358695843,0.646,649.93,649.42,0.3079671]
[1749358699048,0.646,649.93,649.43,0.388]
[1749358713961,0.646,649.93,649.42,0.3079671]
[1749358717767,0.646,649.93,649.43,0.388]
[1749358722870,0.26776234,649.94,649.43,0.388]
[1749358726273,0.528,649.93,649.43,0.388]
[1749358734983,0.528,649.93,649.42,0.3079671]
[1749358737884,0.528,649.93,649.43,0.388]
[1749358749887,0.528,649.93,649.42,0.3079671]
[1749358752893,0.528,649.93,649.43,0.388]
[1749358773217,0.26776234,649.94,649.43,0.388]
[1749358776816,0.49,649.93,649.43,0.388]
[1749358782717,0.49,649.93,649.42,0.3079671]
[1749358785523,0.49,649.93,649.43,0.388]
[1749358798834,0.26776234,649.94,649.43,0.388]
[1749358800531,0.26776234,649.94,649.42,0.3079671]
[1749358801635,0.503,649.93,649.42,0.3079671]
[1749358802435,0.2678221,649.85,649.42,0.3079671]
[1749358803738,0.2678221,649.85,649.43,0.388]
[1749358828550,0.493,649.84,649.42,0.3079671]
[1749358832455,0.493,649.84,649.43,0.388]
[1749358842761,0.493,649.84,649.43,0.69596236]
[1749358851470,0.493,649.84,649.43,0.30796236]
[1749358854374,0.493,649.84,649.44,0.388]
[1749358855672,0.16665326,649.84,649.44,0.388]
[1749358860682,0.26778088,649.94,649.44,0.388]
[1749358866986,0.723,649.93,649.44,0.388]
[1749358878496,0.723,649.93,649.43,0.30796236]
[1749358879799,0.26778088,649.94,649.43,0.30796236]
[1749358881099,0.26778088,649.94,649.44,0.388]
[1749358882601,0.544,649.93,649.44,0.388]
[1749358901621,0.26778088,649.94,649.44,0.388]
[1749358904622,0.701,649.93,649.44,0.388]
[1749358908022,0.701,649.93,649.43,0.30796236]
[1749358911635,0.701,649.93,649.44,0.388]
[1749358923639,0.701,649.93,649.43,0.30796236]
[1749358926744,0.701,649.93,649.44,0.388]
[1749358944657,1.11436993,649.92,649.44,0.388]
[1749358944857,0.701,649.93,649.44,0.388]
[1749358944858,1.11436993,649.91,649.44,0.388]
[1749358945052,1.11436993,649.9,649.44,0.388]
[1749358945251,0.701,649.93,649.44,0.388]
[1749358945454,1.11435286,649.92,649.44,0.388]
[1749358945654,1.11435286,649.91,649.44,0.388]
[1749358945854,1.11435286,649.9,649.44,0.388]
[1749358946052,1.11435286,649.89,649.44,0.388]
[1749358946252,1.11435286,649.88,649.44,0.388]
[1749358946457,0.701,649.93,649.44,0.388]
[1749358946656,1.11435824,649.92,649.44,0.388]
[1749358946857,1.11435824,649.91,649.44,0.388]
[1749358947153,1.11435824,649.9,649.44,0.388]
[1749358947354,0.701,649.93,649.44,0.388]
[1749358947355,1.11435824,649.89,649.44,0.388]
[1749358947552,1.11435824,649.88,649.44,0.388]
[1749358947758,0.701,649.93,649.44,0.388]
[1749358947954,1.11453279,649.92,648.91,0.26783137]
[1749358948154,1.11453279,649.91,648.92,0.3082044]
[1749358948359,1.11453279,649.9,648.92,0.3082044]
[1749358948554,1.11453279,649.89,648.92,0.3082044]
[1749358948854,1.11453279,649.88,648.92,0.3082044]
[1749358949053,0.701,649.93,648.92,0.3082044]
[1749358949355,1.11463931,649.92,648.92,0.3082044]
[1749358949656,1.11463931,649.91,648.92,0.3082044]
[1749358949855,1.11463931,649.9,648.92,0.3082044]
[1749358950056,1.11463931,649.89,648.92,0.3082044]
[1749358950255,1.11463931,649.88,648.92,0.3082044]
[1749358950454,0.701,649.93,648.92,0.3082044]
[1749358950754,1.11466602,649.92,648.93,0.388]
[1749358950953,1.11466602,649.91,648.94,0.3081949]
[1749358951156,1.11466602,649.9,648.94,0.3081949]
[1749358951355,1.11466602,649.89,648.94,0.3081949]
[1749358951557,1.11466602,649.88,648.94,0.3081949]
[1749358951859,0.701,649.93,648.94,0.3081949]
[1749358952058,1.11468521,649.92,648.94,0.3081949]
[1749358952357,1.11468521,649.91,648.94,0.3081949]
[1749358952558,1.11468521,649.9,648.94,0.3081949]
[1749358952760,1.11468521,649.89,648.94,0.3081949]
[1749358953060,1.11468521,649.88,648.94,0.3081949]
[1749358953257,0.26778088,649.94,648.94,0.3081949]
[1749358953461,1.11472728,649.93,648.94,0.3081949]
[1749358953759,1.11472728,649.92,648.94,0.3081949]
[1749358954057,1.11472728,649.91,648.94,0.3081949]
[1749358954259,1.11472728,649.9,648.94,0.3081949]
[1749358954457,0.26778088,649.94,648.94,0.3081949]
[1749358954760,1.11491998,649.93,648.94,0.3081949]
[1749358955057,1.11491998,649.92,648.94,0.3081949]
[1749358955261,1.11491998,649.91,648.94,0.3081949]
[1749358955557,1.11491998,649.9,648.94,0.3081949]
[1749358955761,0.751,649.9,648.94,0.3081949]
[1749358959559,1.11522697,649.89,648.94,0.3081949]
[1749358959760,0.751,649.9,648.94,0.3081949]
[1749358959959,1.11528346,649.89,648.94,0.3081949]
[1749358960164,0.751,649.9,648.94,0.3081949]
[1749358960460,1.11528346,649.89,648.94,0.3081949]
[1749358960660,0.751,649.9,648.94,0.3081949]
[1749358960959,1.11533322,649.89,648.94,0.3081949]
[1749358961160,0.751,649.9,648.94,4.13789057]
[1749358961364,1.11533322,649.89,648.94,4.13789057]
[1749358961566,0.751,649.9,648.94,4.13789057]
[1749358961762,1.11540209,649.89,648.94,4.13789057]
[1749358961967,0.751,649.9,648.95,3.82969567]
[1749358962168,1.11539195,649.89,648.96,0.3081854]
[1749358962368,0.751,649.9,648.96,0.3081854]
[1749358962564,1.11539206,649.89,648.96,0.3081854]
[1749358962765,0.751,649.9,648.96,4.13788107]
[1749358962966,1.11546738,649.89,648.96,4.13788107]
[1749358963169,0.751,649.9,648.96,4.13788107]
[1749358963870,0.751,649.9,648.97,3.82969567]
[1749358964065,0.751,649.9,648.98,0.3081759]
[1749358964964,0.751,649.9,648.98,4.13787157]
[1749358965568,1.11578473,649.89,648.98,4.13787157]
[1749358965766,0.751,649.9,648.98,4.13787157]
[1749358965965,1.11578066,649.89,648.98,4.13787157]
[1749358966166,0.751,649.9,648.98,4.13787157]
[1749358966569,1.11591538,649.89,648.98,4.13787157]
[1749358966769,1.11591538,649.88,648.98,4.13787157]
[1749358966972,1.11591538,649.87,648.98,0.3081759]
[1749358967170,1.11591538,649.86,648.98,0.3081759]
[1749358967470,1.11591538,649.85,648.98,0.3081759]
[1749358967766,1.11591538,649.84,648.99,0.388]
[1749358968067,1.11591538,649.83,648.99,0.388]
[1749358968268,0.751,649.9,648.99,0.388]
[1749358968466,1.11605205,649.89,648.99,0.388]
[1749358968665,1.11605205,649.88,649.0,0.3081664]
[1749358968865,1.11605205,649.87,649.0,0.3081664]
[1749358969168,1.11605205,649.86,649.0,0.3081664]
[1749358969367,1.11605205,649.85,649.0,0.3081664]
[1749358969669,1.11605205,649.84,649.0,0.3081664]
[1749358969870,1.11608324,649.83,649.0,0.3081664]
[1749358970071,1.11608324,649.82,649.0,0.3081664]
[1749358970370,0.751,649.9,649.0,0.3081664]
[1749358970671,1.11608837,649.89,649.0,0.3081664]
[1749358970872,1.11608837,649.88,649.0,0.3081664]
[1749358971069,1.11608837,649.87,649.0,0.3081664]
[1749358971272,1.11608837,649.86,649.0,0.3081664]
[1749358971472,1.11608837,649.85,649.0,0.3081664]
[1749358971669,1.11608837,649.84,649.0,0.3081664]
[1749358971873,1.11608837,649.83,649.0,0.3081664]
[1749358972068,0.751,649.9,649.0,0.3081664]
[1749358972069,1.11608837,649.82,649.0,0.3081664]
[1749358972371,0.751,649.9,649.0,0.3081664]
[1749358972573,1.11559933,649.89,649.0,0.3081664]
[1749358972772,1.11559933,649.88,649.0,0.3081664]
[1749358972970,1.11559933,649.87,649.0,0.3081664]
[1749358973171,1.11559933,649.86,649.0,0.3081664]
[1749358973370,1.11559933,649.85,649.0,0.3081664]
[1749358973570,1.11559933,649.84,649.0,0.3081664]
[1749358973768,1.11559933,649.83,649.0,0.3081664]
[1749358974070,1.11559933,649.82,649.0,0.3081664]
[1749358974369,0.751,649.9,649.0,0.3081664]
[1749358974574,1.11539682,649.89,649.0,0.3081664]
[1749358974774,1.11539682,649.88,649.0,0.3081664]
[1749358974973,1.11539682,649.87,649.0,0.3081664]
[1749358975173,1.11539682,649.86,649.0,0.3081664]
[1749358975470,1.11539682,649.85,649.0,0.3081664]
[1749358975770,1.11539682,649.84,649.0,0.3081664]
[1749358975973,1.11539682,649.83,649.0,0.3081664]
[1749358976273,0.751,649.9,649.0,0.3081664]
[1749358976274,1.11539682,649.82,649.0,0.3081664]
[1749358976573,1.11539682,649.81,649.0,0.3081664]
[1749358976769,1.11539682,649.8,649.0,0.3081664]
[1749358976973,1.11539682,649.79,649.0,0.3081664]
[1749358977172,1.11539682,649.78,649.0,0.3081664]
[1749358977373,1.11539682,649.77,649.0,0.3081664]
[1749358977569,1.11539682,649.76,649.0,0.3081664]
[1749358977770,1.11539682,649.75,649.0,0.3081664]
[1749358977972,0.751,649.9,649.0,0.3081664]
[1749358978267,1.11474145,649.89,649.0,0.3081664]
[1749358978470,1.11474145,649.88,649.0,0.3081664]
[1749358978670,1.11474145,649.87,649.0,0.3081664]
[1749358978867,1.11474145,649.86,649.0,0.3081664]
[1749358979071,1.11474145,649.85,649.0,0.3081664]
[1749358979269,1.11474145,649.84,649.0,0.3081664]
[1749358979474,1.11474145,649.83,649.0,0.3081664]
[1749358979673,1.11474145,649.82,649.0,0.3081664]
[1749358979969,1.11474145,649.81,649.0,0.3081664]
[1749358980169,1.11474145,649.8,649.0,0.3081664]
[1749358980373,1.11474145,649.79,649.0,0.3081664]
[1749358980571,1.11474145,649.78,649.0,0.3081664]
[1749358980770,1.11474145,649.77,649.0,0.3081664]
[1749358980971,1.11474145,649.76,649.0,0.3081664]
[1749358981174,0.751,649.9,649.0,0.3081664]
[1749358981373,1.1144778,649.89,649.0,0.3081664]
[1749358981573,1.1144778,649.88,649.0,0.3081664]
[1749358981876,1.1144778,649.87,649.0,0.3081664]
[1749358982071,1.1144778,649.86,649.0,0.3081664]
[1749358982275,1.1144778,649.85,649.0,0.3081664]
[1749358982473,1.1144778,649.84,649.0,0.3081664]
[1749358982676,1.1144778,649.83,649.0,0.3081664]
[1749358982973,1.1144778,649.82,649.0,0.3081664]
[1749358983176,1.1144778,649.81,649.0,0.3081664]
[1749358983376,1.1144778,649.8,649.0,0.3081664]
[1749358983671,1.1144778,649.79,649.0,0.3081664]
[1749358983972,1.1144778,649.78,649.0,0.3081664]
[1749358984177,0.751,649.9,649.0,0.3081664]
[1749358984477,1.11417285,649.89,649.0,0.3081664]
[1749358984674,1.11417285,649.88,649.0,0.3081664]
[1749358984872,1.11417285,649.87,649.0,0.3081664]
[1749358985075,1.11417285,649.86,649.0,0.3081664]
[1749358985274,1.11417285,649.85,649.0,0.3081664]
[1749358985475,1.11417285,649.84,649.0,0.3081664]
[1749358985677,1.11417285,649.83,649.0,0.3081664]
[1749358985972,1.11417285,649.82,649.0,0.3081664]
[1749358986175,1.11417285,649.81,649.0,0.3081664]
[1749358986375,1.11417285,649.8,649.0,0.3081664]
[1749358986576,1.11417285,649.79,649.0,0.3081664]
[1749358986777,0.26778088,649.94,649.0,0.3081664]
[1749358986979,1.11393373,649.93,649.0,0.3081664]
[1749358987177,1.11393373,649.92,649.0,0.3081664]
[1749358987477,1.11393373,649.91,649.0,0.3081664]
[1749358987680,1.11393373,649.9,649.0,0.3081664]
[1749358987976,1.11393373,649.89,649.0,0.3081664]
[1749358988175,1.11393373,649.88,649.0,0.3081664]
[1749358988379,1.11393373,649.87,649.0,0.3081664]
[1749358988576,1.11393373,649.86,649.0,0.3081664]
[1749358988780,1.11393373,649.85,649.0,0.3081664]
[1749358988978,1.11393373,649.84,649.0,0.3081664]
[1749358989276,1.11393373,649.83,649.0,0.3081664]
[1749358989479,1.11393373,649.82,649.0,0.3081664]
[1749358989680,1.11393373,649.81,649.0,0.3081664]
[1749358989881,1.11393373,649.8,649.0,0.3081664]
[1749358990077,1.11393373,649.79,649.0,0.3081664]
[1749358990279,0.67,649.86,649.0,0.3081664]
[1749358990580,1.11367938,649.85,649.0,0.3081664]
[1749358990774,1.11367938,649.84,649.0,0.3081664]
[1749358990979,1.11367938,649.83,649.0,0.3081664]
[1749358991179,1.11367938,649.82,649.0,0.3081664]
[1749358991376,1.11367938,649.81,649.0,0.3081664]
[1749358991580,1.11367938,649.8,649.0,0.3081664]
[1749358991778,1.11367938,649.79,649.0,0.3081664]
[1749358991979,0.67,649.86,649.0,0.3081664]
[1749358992180,1.11368085,649.85,649.0,0.3081664]
[1749358992481,1.11368085,649.84,649.01,0.388]
[1749358992779,1.11368085,649.83,649.01,0.388]
[1749358992981,1.11368085,649.82,649.01,0.388]
[1749358993178,1.11368085,649.81,649.01,0.388]
[1749358993378,1.11368085,649.8,649.01,0.388]
[1749358993580,1.11368085,649.79,649.01,0.388]
[1749358993782,1.11368085,649.78,649.01,0.388]
[1749358993981,1.11368085,649.77,649.01,0.388]
[1749358994177,1.11368085,649.76,649.01,0.388]
[1749358994378,1.11368085,649.75,649.01,0.388]
[1749358994578,1.11368085,649.74,649.01,0.388]
[1749358994777,1.11368085,649.73,649.01,0.388]
[1749358994980,1.11368085,649.72,649.01,0.388]
[1749358995180,1.11368085,649.71,649.01,0.388]
[1749358995377,1.11368085,649.7,649.01,0.388]
[1749358995682,1.11368085,649.69,649.01,0.388]
[1749358995880,0.67,649.86,649.01,0.388]
[1749358995881,1.11368085,649.68,649.01,0.388]
[1749358996176,1.11368085,649.67,649.01,0.388]
[1749358996379,1.11368085,649.66,649.01,0.388]
[1749358996582,1.11368085,649.65,649.01,0.388]
[1749358996780,0.67,649.86,649.01,0.388]
[1749358996983,1.11533042,649.85,649.01,0.388]
[1749358997181,1.11533042,649.84,649.01,0.388]
[1749358997382,1.11533042,649.83,649.01,0.388]
[1749358997580,1.11533042,649.82,649.01,0.388]
[1749358997786,1.11533042,649.81,649.01,0.388]
[1749358998080,1.11533042,649.8,649.01,0.388]
[1749358998382,1.11533042,649.79,649.01,0.388]
[1749358998582,1.11533042,649.78,649.01,0.388]
[1749358998784,1.11533042,649.77,649.01,0.388]
[1749358998983,1.11533042,649.76,649.01,0.388]
[1749358999187,1.11533042,649.75,649.01,0.388]
[1749358999385,1.11533042,649.74,649.01,0.388]
[1749358999583,1.11533042,649.73,649.01,0.388]
[1749358999787,1.11533042,649.72,649.01,0.388]
[1749358999985,1.11533042,649.71,649.01,0.388]
[1749359000186,1.11533042,649.7,649.01,0.388]
[1749359000490,1.11533042,649.69,649.01,0.388]
[1749359000686,1.11533042,649.68,649.01,0.388]
[1749359000985,1.11533042,649.67,649.01,0.388]
[1749359001285,1.11533042,649.66,649.01,0.388]
[1749359001488,1.11533042,649.65,649.01,0.388]
[1749359001686,1.11533042,649.64,649.01,0.388]
[1749359001887,0.67,649.86,649.01,0.388]
[1749359002092,1.11427118,649.85,649.01,0.388]
[1749359002386,1.11427118,649.84,649.01,0.388]
[1749359002586,1.11427118,649.83,649.01,0.388]
[1749359002792,1.11427118,649.82,649.01,0.388]
[1749359002994,1.11427118,649.81,649.01,0.388]
[1749359003191,1.11427118,649.8,649.01,0.388]
[1749359003391,1.11427118,649.79,649.01,0.388]
[1749359003589,1.11427118,649.78,649.0,0.3081664]
[1749359003789,1.11427118,649.77,649.0,0.3081664]
[1749359003990,1.11427118,649.76,649.0,0.3081664]
[1749359004190,1.11427118,649.75,649.0,0.3081664]
[1749359004494,1.11427118,649.74,649.0,0.3081664]
[1749359004695,1.11427118,649.73,649.0,0.3081664]
[1749359004895,1.11427118,649.72,649.0,0.3081664]
[1749359005194,1.11427118,649.71,649.0,0.3081664]
[1749359005395,1.11427118,649.7,649.0,0.3081664]
[1749359005592,1.11427118,649.69,649.0,0.3081664]
[1749359005891,1.11427118,649.68,649.0,0.3081664]
[1749359006094,1.11427118,649.67,649.01,0.388]
[1749359006294,1.11427118,649.66,649.01,0.388]
[1749359006495,1.11427118,649.65,649.01,0.388]
[1749359006698,0.67,649.86,649.01,0.388]
[1749359006898,1.11390894,649.85,649.01,0.388]
[1749359007201,1.11390894,649.84,649.01,0.388]
[1749359007499,1.11390894,649.83,649.01,0.388]
[1749359007697,1.11390894,649.82,649.01,0.388]
[1749359007900,1.11390894,649.81,649.01,0.388]
[1749359008098,1.11390894,649.8,649.01,0.388]
[1749359008297,1.11390894,649.79,649.01,0.388]
[1749359008601,1.11390894,649.78,649.01,0.388]
[1749359008798,1.11390894,649.77,649.01,0.388]
[1749359008997,1.11390894,649.76,649.01,0.388]
[1749359009201,1.11390894,649.75,649.01,0.388]
[1749359009498,1.11390894,649.74,649.01,0.388]
[1749359009697,1.11390894,649.73,649.01,0.388]
[1749359010003,1.11390894,649.72,649.01,0.388]
[1749359010200,1.11390894,649.71,649.01,0.388]
[1749359010402,1.11390894,649.7,649.01,0.388]
[1749359010604,1.11390894,649.69,649.01,0.388]
[1749359010900,1.11390894,649.68,649.01,0.388]
[1749359011104,1.11390894,649.67,649.01,0.388]
[1749359011301,1.11390894,649.66,649.01,0.388]
[1749359011500,0.67,649.86,649.01,0.388]
[1749359011700,1.11371312,649.85,649.01,0.388]
[1749359011899,1.11371312,649.84,649.01,0.388]
[1749359012106,1.11371312,649.83,649.01,0.388]
[1749359012305,1.11371312,649.82,649.01,0.388]
[1749359012502,1.11371312,649.81,649.01,0.388]
[1749359012705,1.11371312,649.8,649.01,0.388]
[1749359013000,1.11371312,649.79,649.01,0.388]
[1749359013201,1.11371312,649.78,649.01,0.388]
[1749359013405,1.11371312,649.77,649.01,0.388]
[1749359013599,1.11371312,649.76,649.01,0.388]
[1749359013803,1.11371312,649.75,649.01,0.388]
[1749359014001,1.11371312,649.74,649.01,0.388]
[1749359014199,1.11371312,649.73,649.01,0.388]
[1749359014404,1.11371312,649.72,649.01,0.388]
[1749359014604,1.11371312,649.71,649.01,0.388]
[1749359014803,1.11371312,649.7,649.01,0.388]
[1749359015003,1.11371312,649.69,649.01,0.388]